fUST/lending_fUST_20260611
["ID","MTS","AMOUNT","RATE_DAILY","PERIOD"]
[424762103,1781133040000,-14313.86538551,0.000249,7]
[424762067,1781133040000,-1340.04,0.00021918,2]
[424762054,1781133040000,-151.0,0.00021918,2]
[424762006,1781133040000,-150.0,0.00021093,2]
[424762009,1781133040000,-1340.04,0.00021096,2]
[424762015,1781133040000,-1225.83172305,0.000214,2]
[424762013,1781133040000,-1340.04,0.0002137,2]
[424762023,1781133040000,-332.15793462,0.00021671,2]
[424762017,1781133040000,-843.1691,0.000215,2]
[424762019,1781133040000,-1225.83172305,0.000216,2]
[424762021,1781133040000,-1340.04,0.00021644,2]
[424762026,1781133040000,-295.29936088,0.00021671,2]
[424762024,1781133040000,-379.60906814,0.00021671,2]
[424762028,1781133040000,-500.56425045,0.00021917,2]
[424762056,1781133040000,-151.0,0.00021918,2]
[424762030,1781133040000,-312.08242441,0.00021917,2]
[424762036,1781133040000,-304.24307521,0.00021917,2]
[424762034,1781133040000,-500.69186164,0.00021917,2]
[424762037,1781133040000,-500.0,0.00021917,2]
[424762039,1781133040000,-500.0,0.00021917,2]
[424762043,1781133040000,-500.67718803,0.00021917,2]
[424762041,1781133040000,-310.90458041,0.00021917,2]
[424762045,1781133040000,-500.0,0.00021917,2]
[424762047,1781133040000,-169.75300621,0.00021917,2]
[424762048,1781133040000,-500.0,0.00021917,2]
[424762050,1781133040000,-151.0,0.00021918,2]
[424762052,1781133040000,-206.817708,0.00021918,2]
[424762032,1781133040000,-550.82305201,0.00021917,2]
[424762746,1781133046000,-5000.0,0.00021698,2]
[424762750,1781133046000,-165.294302,0.00021918,2]
[424762748,1781133046000,-500.0,0.00021917,2]
[424762754,1781133046000,-151.0,0.00021918,2]
[424762752,1781133046000,-165.294302,0.00021918,2]
[424762756,1781133046000,-1.34987206,0.00021918,2]
[424763401,1781133058000,151.0,0.00021093,120]
[424763402,1781133101000,263.0,0.00021093,120]
[424763403,1781133369000,680.2763917,0.00021093,120]
[424763404,1781133846000,279.0,0.0002,120]
[424763448,1781134232000,-967.56212269,0.000141,2]
[424763450,1781134232000,-306.61701,0.000141,2]
[424763569,1781134238000,-151.0,0.00015854,2]
[424763568,1781134238000,-337.0,0.00015669,2]
[424763566,1781134238000,-1095.58065156,0.000156,2]
[424763565,1781134238000,-1095.58065158,0.000156,2]
[424763563,1781134238000,-500.0,0.00015355,2]
[424763564,1781134238000,-500.0,0.00015355,2]
[424763559,1781134238000,-213.554946,0.00015068,2]
[424763557,1781134238000,-251.855298,0.00014639,2]
[424763560,1781134238000,-500.0,0.00015355,2]
[424763562,1781134238000,-500.0,0.00015355,2]
[424763567,1781134238000,-1095.58065156,0.000156,2]
[424763558,1781134238000,-6771.5021028,0.00014734,2]
[424763554,1781134238000,-5000.0,0.00013959,2]
[424763555,1781134238000,-224.33495581,0.00014386,2]
[424763561,1781134238000,-500.0,0.00015355,2]
[424763571,1781134238000,-151.0,0.00015854,2]
[424763556,1781134238000,-1000.0,0.00014426,2]
[424763572,1781134238000,-151.0,0.00015854,2]
[424763585,1781134238000,-308.64393807,0.00015863,2]
[424763586,1781134238000,-500.0,0.00015863,2]
[424763587,1781134238000,-17017.29909807,0.00015864,2]
[424763584,1781134238000,-184.903,0.00015862,2]
[424763583,1781134238000,-651.89405549,0.00015861,2]
[424763582,1781134238000,-500.0,0.00015861,2]
[424763580,1781134238000,-500.0,0.00015861,2]
[424763581,1781134238000,-500.0,0.00015861,2]
[424763577,1781134238000,-500.0,0.00015861,2]
[424763579,1781134238000,-500.0,0.00015861,2]
[424763578,1781134238000,-500.0,0.00015861,2]
[424763576,1781134238000,-271.83529402,0.00015854,2]
[424763575,1781134238000,-151.0,0.00015854,2]
[424763573,1781134238000,-151.0,0.00015854,2]
[424763574,1781134238000,-151.0,0.00015854,2]
[424763570,1781134238000,-151.0,0.00015854,2]
[424763625,1781134243000,-4756.22263849,0.00015864,2]
[424763626,1781134243000,-10000.00280136,0.00015864,2]
[424763627,1781134243000,-1779.32204679,0.00015864,2]
[424763676,1781134291000,-5000.0,0.00015548,2]
[424763678,1781134308000,2000.0,0.00021088,120]
[424763677,1781134308000,-357.26982633,0.00015705,2]
[424763680,1781135398000,500.0,0.00024074,30]
[424763679,1781135398000,500.0,0.00024074,30]
[424763682,1781135399000,500.0,0.00024074,30]
[424763681,1781135399000,500.0,0.00024074,30]
[424763684,1781135431000,-357.26982633,0.00014205,2]
[424763686,1781135431000,-4874.03103007,0.00014348,2]
[424763690,1781135431000,-438.23226062,0.000156,2]
[424763689,1781135431000,-438.23226064,0.000156,2]
[424763685,1781135431000,-125.96896993,0.00014348,2]
[424763687,1781135431000,-1000.0,0.00015045,2]
[424763688,1781135431000,-194.894347,0.00015068,2]
[424763693,1781135431000,-2531.05803489,0.00016098,2]
[424763698,1781135431000,-1107.94202384,0.00016141,2]
[424763695,1781135431000,-187.43042526,0.00016119,2]
[424763692,1781135431000,-328.448221,0.00015684,2]
[424763694,1781135431000,-2551.48648281,0.00016098,2]
[424763696,1781135431000,-280.52140981,0.00016119,2]
[424763701,1781135431000,-405.76600617,0.00016173,2]
[424763697,1781135431000,-169.2978411,0.00016119,2]
[424763699,1781135431000,-79.49055336,0.00016141,2]
[424763700,1781135431000,-623.88230932,0.00016173,2]
[424763691,1781135431000,-438.23226062,0.000156,2]
[424763713,1781135432000,-500.0,0.00016173,2]
[424763703,1781135432000,-500.0,0.00016173,2]
[424763711,1781135432000,-500.0,0.00016173,2]
[424763715,1781135432000,-500.0,0.00016177,2]
[424763704,1781135432000,-500.0,0.00016173,2]
[424763702,1781135432000,-500.0,0.00016173,2]
[424763712,1781135432000,-500.0,0.00016173,2]
[424763714,1781135432000,-500.0,0.00016173,2]
[424763709,1781135432000,-500.0,0.00016173,2]
[424763708,1781135432000,-500.0,0.00016173,2]
[424763705,1781135432000,-500.0,0.00016173,2]
[424763710,1781135432000,-433.98589218,0.00016173,2]
[424763707,1781135432000,-500.0,0.00016173,2]
[424763720,1781135432000,-11158.48752015,0.00016178,2]
[424763706,1781135432000,-500.0,0.00016173,2]
[424763719,1781135432000,-157.3483905,0.00016178,2]
[424763722,1781135432000,-648.1942693,0.00016178,2]
[424763717,1781135432000,-11136.6902447,0.00016178,2]
[424763799,1781135438000,-393.21059185,0.00016431,2]
[424763819,1781135438000,-166.67849754,0.00016435,2]
[424763810,1781135438000,-298.08482982,0.00016435,2]
[424763833,1781135438000,-191.25269084,0.000196,2]
[424763816,1781135438000,-323.9838784,0.00016435,7]
[424763821,1781135438000,-257.44564217,0.00016668,2]
[424763812,1781135438000,-416.76530959,0.00016435,2]
[424763814,1781135438000,-231.4626804,0.00016435,2]
[424763806,1781135438000,-374.86085053,0.00016435,2]
[424763800,1781135438000,-387.69632175,0.00016431,2]
[424763804,1781135438000,-163.01592121,0.00016435,2]
[424763808,1781135438000,-172.52734899,0.00016435,2]
[424763839,1781135438000,-160.49572122,0.000196,2]
[424763802,1781135438000,-322.50768515,0.00016431,2]
[424763791,1781135438000,-254.35449995,0.00016178,2]
[424763792,1781135438000,-296.96451002,0.00016198,2]
[424763789,1781135438000,-3623.93796553,0.00016016,2]
[424763796,1781135438000,-357.7446383,0.00016431,2]
[424763795,1781135438000,-221.09810259,0.00016431,2]
[424763770,1781135438000,-1376.06203447,0.00016016,2]
[424763818,1781135438000,-338.59568219,0.00016435,2]
[424763835,1781135438000,-194.35905562,0.000196,2]
[424763823,1781135438000,-176.88882,0.00016722,2]
[424763841,1781135438000,-160.49572122,0.000196,2]
[424763872,1781135438000,-318.01317702,0.00020698,2]
[424763871,1781135438000,-338.38835213,0.000206,2]
[424763863,1781135438000,-338.38835213,0.000202,2]
[424763842,1781135438000,-163.0133178,0.000196,2]
[424763859,1781135438000,-338.38835213,0.0002,2]
[424763869,1781135438000,-338.38835213,0.000204,2]
[424763865,1781135438000,-172.77169429,0.000202,2]
[424763857,1781135438000,-172.77169429,0.000198,2]
[424763867,1781135438000,-196.66106927,0.000202,2]
[424763853,1781135438000,-768.91038747,0.00019791,2]
[424763861,1781135438000,-172.77169429,0.0002,2]
[424763855,1781135438000,-338.38835213,0.000198,2]
[424763848,1781135438000,-157.71973597,0.000196,2]
[424763850,1781135438000,-160.0,0.00019791,2]
[424763846,1781135438000,-45127.8035465,0.000196,2]
[424763829,1781135438000,-183.10318881,0.000196,2]
[424763844,1781135438000,-163.0133178,0.000196,2]
[424763827,1781135438000,-220.60784129,0.00019304,2]
[424763831,1781135438000,-190.33488176,0.000196,2]
[424763837,1781135438000,-194.35905562,0.000196,2]
[424763825,1781135438000,-184.903,0.00017293,2]
[424763852,1781135438000,-160.0,0.00019791,2]
[424763898,1781135443000,-395.96697451,0.00020698,2]
[424763912,1781135444000,-4368.5643661,0.00020698,2]
[424763914,1781135444000,-445.87823442,0.000215,2]
[424763915,1781135444000,-299.76166558,0.000215,2]
[424763916,1781135444000,-16.13951694,0.000215,2]
[424763913,1781135444000,-185.55739948,0.0002109,2]
[424763921,1781135855000,1265.65650822,7.6e-05,2]
[424763922,1781136221000,156.03,0.00021918,31]
[424763978,1781136632000,-185.564048,0.00015594,2]
[424763963,1781136632000,-882.15453942,0.00011527,6]
[424763967,1781136632000,-4117.84546058,0.00011527,6]
[424763969,1781136632000,-2047.19447104,0.00012,2]
[424763972,1781136632000,-565.24442313,0.00012,2]
[424763984,1781136632000,-187.0142732,0.00016132,2]
[424763991,1781136632000,-500.0,0.00016514,2]
[424763982,1781136632000,-175.29290425,0.000156,2]
[424763974,1781136632000,-1000.0,0.00015483,2]
[424763988,1781136632000,-374.02854641,0.00016449,2]
[424763976,1781136632000,-265.484397,0.00015534,2]
[424763980,1781136632000,-175.29290426,0.000156,2]
[424763993,1781136632000,-100.51850375,0.00016514,2]
[424763986,1781136632000,-156.04,0.00016438,2]
[424764121,1781136638000,-500.0,0.00016999,2]
[424764119,1781136638000,-500.0,0.00016999,2]
[424764117,1781136638000,-500.0,0.00016999,2]
[424764114,1781136638000,-500.0,0.00016999,2]
[424764116,1781136638000,-342.54510816,0.00016999,2]
[424764105,1781136638000,-10080.6934249,0.00016515,2]
[424764099,1781136638000,-175.29290425,0.000156,2]
[424764101,1781136638000,-114.3688176,0.00016514,2]
[424764123,1781136638000,-500.0,0.00016999,2]
[424764110,1781136638000,-500.0,0.00016999,2]
[424764112,1781136638000,-500.0,0.00016999,2]
[424764108,1781136638000,-6775.69175603,0.000169,2]
[424764103,1781136638000,-272.26906563,0.00016514,2]
[424764127,1781136638000,-500.0,0.00016999,2]
[424764106,1781136638000,-186.05115025,0.00016795,3]
[424764132,1781136638000,-175.3026343,0.00016999,2]
[424764145,1781136638000,-300.0,0.00016999,2]
[424764147,1781136638000,-24499.13714025,0.00017,2]
[424764149,1781136638000,-3917.20276778,0.00017207,2]
[424764139,1781136638000,-500.0,0.00016999,2]
[424764125,1781136638000,-500.0,0.00016999,2]
[424764150,1781136638000,-184.903,0.00017307,2]
[424764141,1781136638000,-500.0,0.00016999,2]
[424764152,1781136638000,-573919.75205712,0.00019099,2]
[424764138,1781136638000,-500.0,0.00016999,2]
[424764136,1781136638000,-500.0,0.00016999,2]
[424764134,1781136638000,-500.0,0.00016999,2]
[424764131,1781136638000,-500.0,0.00016999,2]
[424764129,1781136638000,-500.0,0.00016999,2]
[424764143,1781136638000,-500.0,0.00016999,2]
[424764402,1781136641000,-1484.45985204,0.00019099,2]
[424764586,1781136646000,-302.0,0.00018908,6]
[424764585,1781136646000,-1150.08766105,0.00018908,6]
[424764592,1781137832000,-1071.458,0.00011734,2]
[424764591,1781137832000,-970.49786276,0.00011734,2]
[424764596,1781137832000,-705.98969277,0.00011734,2]
[424764597,1781137832000,-531.32003797,0.00011853,2]
[424764593,1781137832000,-274.24289103,0.00011734,2]
[424764685,1781137838000,-196.00045769,0.00014945,2]
[424764674,1781137838000,-165.83438079,0.00014945,2]
[424764681,1781137838000,-182.87794684,0.00014945,2]
[424764676,1781137838000,-153.01193033,0.00014945,2]
[424764673,1781137838000,-171.19288169,0.00014945,2]
[424764670,1781137838000,-6485.0005758,0.00014371,2]
[424764677,1781137838000,-172.80176321,0.00014945,2]
[424764666,1781137838000,-300.0,0.00011972,2]
[424764667,1781137838000,-5000.0,0.00011973,2]
[424764671,1781137838000,-259.965266,0.00014471,2]
[424764664,1781137838000,-3308.86508468,0.00011853,2]
[424764665,1781137838000,-300.0,0.00011972,2]
[424764672,1781137838000,-3555.901307,0.00014941,2]
[424764669,1781137838000,-1000.0,0.00013986,2]
[424764679,1781137838000,-195.67465848,0.00014945,2]
[424764668,1781137838000,-151.0,0.00012094,2]
[424764683,1781137838000,-192.91131105,0.00014945,2]
[424764675,1781137838000,-187.05789817,0.00014945,2]
[424764698,1781137838000,-374.11579635,0.00015658,2]
[424764711,1781137838000,-392.00091538,0.00015658,2]
[424764692,1781137838000,-342.38576339,0.00015658,2]
[424764694,1781137838000,-188.07565684,0.00015658,2]
[424764709,1781137838000,-385.8226221,0.00015658,2]
[424764696,1781137838000,-331.66876159,0.00015658,2]
[424764700,1781137838000,-306.02386067,0.00015658,2]
[424764705,1781137838000,-391.34931695,0.00015658,2]
[424764701,1781137838000,-345.60352642,0.00015658,2]
[424764703,1781137838000,-233.58343992,0.00015658,2]
[424764690,1781137838000,-180.898898,0.00015068,2]
[424764688,1781137838000,-189.35584414,0.00014983,2]
[424764707,1781137838000,-365.75589368,0.00015658,2]
[424764687,1781137838000,-162.22834923,0.00014983,2]
[424764807,1781137839000,-855.96440847,0.00016807,2]
[424764785,1781137839000,-648.91339693,0.0001649,2]
[424764805,1781137839000,-811.14174616,0.00016807,2]
[424764792,1781137839000,-829.17190397,0.00016766,2]
[424764777,1781137839000,-500.0,0.00016487,2]
[424764783,1781137839000,-500.0,0.00016487,2]
[424764768,1781137839000,-500.0,0.00016487,2]
[424764779,1781137839000,-500.0,0.00016487,2]
[424764781,1781137839000,-500.0,0.00016487,2]
[424764771,1781137839000,-500.0,0.00016487,2]
[424764796,1781137839000,-765.05965167,0.00016766,2]
[424764764,1781137839000,-500.0,0.00016487,2]
[424764794,1781137839000,-935.28949087,0.00016766,2]
[424764803,1781137839000,-980.00228845,0.00016766,2]
[424764788,1781137839000,-198.61760839,0.0001649,2]
[424764802,1781137839000,-914.38973421,0.00016766,2]
[424764787,1781137839000,-757.42337657,0.0001649,2]
[424764800,1781137839000,-978.37329239,0.00016766,2]
[424764798,1781137839000,-864.00881605,0.00016766,2]
[424764769,1781137839000,-209.44187516,0.00016487,2]
[424764814,1781137839000,-151.0,0.000171,2]
[424764825,1781137839000,-151.0,0.000171,2]
[424764812,1781137839000,-151.0,0.000171,2]
[424764822,1781137839000,-151.0,0.000171,2]
[424764816,1781137839000,-151.0,0.000171,2]
[424764820,1781137839000,-151.0,0.000171,2]
[424764811,1781137839000,-1441035.0319373,0.00017007,2]
[424764790,1781137839000,-684.77152678,0.0001649,2]
[424764773,1781137839000,-511.28881531,0.00016487,2]
[424764756,1781137839000,-782.69863391,0.00016449,2]
[424764762,1781137839000,-784.00183076,0.00016449,2]
[424764712,1781137839000,-324.45669846,0.00015697,2]
[424764716,1781137839000,-250.07286682,0.0001598,2]
[424764714,1781137839000,-378.71168829,0.00015697,2]
[424764718,1781137839000,-176.888819,0.00016069,2]
[424764724,1781137839000,-497.50314238,0.00016132,2]
[424764726,1781137839000,-561.17369452,0.00016132,2]
[424764722,1781137839000,-376.15131367,0.00016132,2]
[424764720,1781137839000,-513.57864508,0.00016132,2]
[424764732,1781137839000,-587.02397543,0.00016132,2]
[424764730,1781137839000,-518.40528963,0.00016132,2]
[424764733,1781137839000,-467.16687983,0.00016132,2]
[424764735,1781137839000,-548.63384053,0.00016132,2]
[424764728,1781137839000,-459.035791,0.00016132,2]
[424764749,1781137839000,-663.33752318,0.00016449,2]
[424764737,1781137839000,-578.73393315,0.00016132,2]
[424764743,1781137839000,-568.06753243,0.00016173,2]
[424764739,1781137839000,-588.00137307,0.00016132,2]
[424764741,1781137839000,-486.6850477,0.00016173,2]
[424764747,1781137839000,-564.22697051,0.00016449,2]
[424764745,1781137839000,-505.63870615,0.00016448,2]
[424764750,1781137839000,-748.23159269,0.00016449,2]
[424764754,1781137839000,-691.20705284,0.00016449,2]
[424764758,1781137839000,-731.51178737,0.00016449,2]
[424764752,1781137839000,-612.04772134,0.00016449,2]
[424764760,1781137839000,-771.6452442,0.00016449,2]
[424764766,1781137839000,-500.0,0.00016487,2]
[424764775,1781137839000,-500.0,0.00016487,2]
[424764829,1781137839000,-151.0,0.000171,2]
[424764818,1781137839000,-151.0,0.000171,2]
[424764888,1781137839000,-523.326981,0.00018821,2]
[424764809,1781137839000,-922.87393589,0.00017,2]
[424764885,1781137839000,-314.676411,0.00018821,2]
[424764898,1781137839000,-1326.67504635,0.00019021,2]
[424764896,1781137839000,-696.1,0.00018904,2]
[424764892,1781137839000,-523.326981,0.00018821,2]
[424764894,1781137839000,-523.326981,0.00018821,2]
[424764900,1781137839000,-300.0,0.00019178,2]
[424764901,1781137839000,-156.04,0.00019178,8]
[424764903,1781137839000,-151.000001,0.00019178,2]
[424764905,1781137839000,-696.1,0.00019178,2]
[424764907,1781137839000,-720.0,0.00019193,2]
[424764909,1781137839000,-26834.19629378,0.00019199,2]
[424764911,1781137839000,-820.325,0.00019199,2]
[424764919,1781137839000,-339.63418612,0.00019452,2]
[424764916,1781137839000,-183.69279488,0.00019452,2]
[424764921,1781137839000,-523.326981,0.00019452,2]
[424764913,1781137839000,-770.82173532,0.00019199,2]
[424764915,1781137839000,-523.326981,0.00019452,2]
[424764922,1781137839000,-523.326981,0.00019452,2]
[424764924,1781137839000,-696.1,0.00019452,2]
[424764935,1781137839000,-151.0,0.00019713,2]
[424764931,1781137839000,-873.67934996,0.000196,2]
[424764926,1781137839000,-323.99724727,0.00019471,2]
[424764930,1781137839000,-485.37741665,0.000196,2]
[424764928,1781137839000,-300.0,0.00019589,3]
[424764933,1781137839000,-200.59943531,0.000196,2]
[424764937,1781137839000,-314.676411,0.00019713,2]
[424764827,1781137839000,-151.0,0.000171,2]
[424764890,1781137839000,-523.326981,0.00018821,2]
[424764886,1781137839000,-3039.3946364,0.00018821,2]
[424764938,1781137839000,-314.676411,0.00019713,2]
[424764879,1781137839000,-314.676411,0.00018821,2]
[424764831,1781137839000,-566.39840559,0.0001713,7]
[424764883,1781137839000,-314.676411,0.00018821,2]
[424764823,1781137839000,-151.0,0.000171,2]
[424764849,1781137839000,-1160.84066556,0.00017953,2]
[424764843,1781137839000,-160.0,0.00017448,2]
[424764842,1781137839000,-160.0,0.00017448,2]
[424764847,1781137839000,-2512.54192146,0.0001766,7]
[424764845,1781137839000,-280.0,0.00017448,2]
[424764834,1781137839000,-918.07158201,0.00017241,2]
[424764836,1781137839000,-186.506,0.00017341,2]
[424764851,1781137839000,-1071.08351234,0.00017953,2]
[424764838,1781137839000,-167.92161579,0.00017341,2]
[424764855,1781137839000,-696.1,0.0001863,2]
[424764833,1781137839000,-995.00628477,0.00017241,2]
[424764840,1781137839000,-600.0,0.00017448,2]
[424764853,1781137839000,-168.7403039,0.00018146,2]
[424764875,1781137839000,-151.0,0.00018821,2]
[424764872,1781137839000,-151.0,0.00018821,2]
[424764881,1781137839000,-314.676411,0.00018821,2]
[424764870,1781137839000,-151.0,0.00018821,2]
[424764868,1781137839000,-151.0,0.00018821,2]
[424764874,1781137839000,-151.0,0.00018821,2]
[424764862,1781137839000,-178.9640928,0.00018821,2]
[424764858,1781137839000,-36563.2518735,0.00018821,2]
[424764864,1781137839000,-481.6421154,0.00018821,2]
[424764856,1781137839000,-343.85563165,0.00018798,2]
[424764866,1781137839000,-347.1485878,0.00018821,2]
[424764877,1781137839000,-151.0,0.00018821,2]
[424765022,1781137840000,-500.0,0.00021917,2]
[424765018,1781137840000,-259.965266,0.00021706,2]
[424765020,1781137840000,-500.0,0.00021917,2]
[424765017,1781137840000,-696.1,0.00021644,2]
[424765013,1781137840000,-270.94050539,0.000215,2]
[424765004,1781137840000,-696.1,0.00020822,2]
[424765007,1781137840000,-864.0,0.00021112,10]
[424765009,1781137840000,-696.1,0.0002137,2]
[424765011,1781137840000,-342.0,0.00021482,2]
[424765000,1781137840000,-420.02906723,0.000206,2]
[424765025,1781137840000,-500.0,0.00021917,2]
[424765015,1781137840000,-2424.46019615,0.00021589,2]
[424765034,1781137840000,-500.0,0.00021917,2]
[424765050,1781137840000,-500.0,0.00021917,2]
[424765024,1781137840000,-500.0,0.00021917,2]
[424765029,1781137840000,-612.9,0.00021917,2]
[424765036,1781137840000,-500.0,0.00021917,2]
[424765032,1781137840000,-500.0,0.00021917,2]
[424765030,1781137840000,-500.0,0.00021917,2]
[424765041,1781137840000,-500.0,0.00021917,2]
[424765039,1781137840000,-500.0,0.00021917,2]
[424765045,1781137840000,-500.0,0.00021917,2]
[424765046,1781137840000,-175.36,0.00021917,2]
[424765038,1781137840000,-500.0,0.00021917,2]
[424765006,1781137840000,-696.1,0.00021096,2]
[424765048,1781137840000,-500.0,0.00021917,2]
[424765027,1781137840000,-500.0,0.00021917,2]
[424765002,1781137840000,-1424.49568178,0.000206,2]
[424764965,1781137840000,-250.059684,0.00019985,2]
[424764997,1781137840000,-1424.49568178,0.000204,2]
[424764942,1781137840000,-314.676411,0.00019713,2]
[424764944,1781137840000,-314.676411,0.00019713,2]
[424764947,1781137840000,-768.91038747,0.00019771,2]
[424764945,1781137840000,-696.1,0.00019726,2]
[424764951,1781137840000,-420.02906723,0.000198,2]
[424764949,1781137840000,-160.0,0.00019771,2]
[424764953,1781137840000,-1424.49568178,0.000198,2]
[424764955,1781137840000,-151.0,0.000199,2]
[424764963,1781137840000,-196.57275563,0.000199,2]
[424764956,1781137840000,-151.0,0.000199,2]
[424764962,1781137840000,-196.57275563,0.000199,2]
[424764958,1781137840000,-151.0,0.000199,2]
[424764960,1781137840000,-196.57275563,0.000199,2]
[424764999,1781137840000,-696.1,0.00020548,2]
[424764974,1781137840000,-711.62429788,0.0002,5]
[424764984,1781137840000,-151.0,0.00020007,2]
[424764969,1781137840000,-420.02906723,0.0002,2]
[424765055,1781137840000,-523.326981,0.00021917,2]
[424764979,1781137840000,-1553.20773327,0.00020006,2]
[424764988,1781137840000,-420.02906723,0.000202,2]
[424764986,1781137840000,-734.57178592,0.00020047,2]
[424764980,1781137840000,-151.0,0.00020007,2]
[424764976,1781137840000,-696.1,0.0002,2]
[424764982,1781137840000,-151.0,0.00020007,2]
[424764989,1781137840000,-1424.49568178,0.000202,2]
[424764991,1781137840000,-151.0,0.000202,2]
[424764993,1781137840000,-696.1,0.00020274,2]
[424764995,1781137840000,-420.02906723,0.000204,2]
[424764971,1781137840000,-1424.49568178,0.0002,2]
[424765057,1781137840000,-523.326981,0.00021917,2]
[424765043,1781137840000,-326.85,0.00021917,2]
[424765052,1781137840000,-523.326981,0.00021917,2]
[424765107,1781137840000,-151.0,0.00021918,2]
[424765104,1781137840000,-152.274508,0.00021918,2]
[424765105,1781137840000,-151.0,0.00021918,2]
[424765102,1781137840000,-151.0,0.00021918,2]
[424765114,1781137840000,-151.0,0.00021918,2]
[424765106,1781137840000,-151.0,0.00021918,2]
[424765110,1781137840000,-151.0,0.00021918,2]
[424765115,1781137840000,-151.0,0.00021918,2]
[424765118,1781137840000,-151.0,0.00021918,2]
[424765117,1781137840000,-151.0,0.00021918,2]
[424765122,1781137840000,-151.0,0.00021918,2]
[424765116,1781137840000,-151.0,0.00021918,2]
[424765124,1781137840000,-151.0,0.00021918,2]
[424765119,1781137840000,-151.0,0.00021918,2]
[424765123,1781137840000,-151.0,0.00021918,2]
[424765121,1781137840000,-151.0,0.00021918,2]
[424765126,1781137840000,-151.0,0.00021918,2]
[424765125,1781137840000,-151.0,0.00021918,2]
[424765120,1781137840000,-151.0,0.00021918,2]
[424765054,1781137840000,-523.326981,0.00021917,2]
[424765127,1781137840000,-229.668179,0.00021918,2]
[424765131,1781137840000,-696.1,0.00021918,2]
[424765129,1781137840000,-151.0,0.00021918,2]
[424765134,1781137840000,-151.0,0.00021918,2]
[424765130,1781137840000,-151.0,0.00021918,2]
[424765133,1781137840000,-151.0,0.00021918,2]
[424765132,1781137840000,-151.0,0.00021918,2]
[424765103,1781137840000,-270.91071,0.00021918,2]
[424765112,1781137840000,-151.0,0.00021918,2]
[424765128,1781137840000,-151.0,0.00021918,2]
[424765108,1781137840000,-151.0,0.00021918,2]
[424765113,1781137840000,-151.0,0.00021918,2]
[424765061,1781137840000,-500.0,0.00021917,2]
[424765059,1781137840000,-500.0,0.00021917,2]
[424765069,1781137840000,-500.0,0.00021917,2]
[424765066,1781137840000,-500.0,0.00021917,2]
[424765067,1781137840000,-500.0,0.00021917,2]
[424765071,1781137840000,-500.0,0.00021917,2]
[424765079,1781137840000,-151.0,0.00021918,2]
[424765080,1781137840000,-151.0,0.00021918,2]
[424765075,1781137840000,-500.0,0.00021917,2]
[424765082,1781137840000,-157.8,0.00021918,2]
[424765073,1781137840000,-500.0,0.00021917,2]
[424765077,1781137840000,-151.0,0.00021917,2]
[424765088,1781137840000,-998.316737,0.00021918,2]
[424765063,1781137840000,-500.0,0.00021917,2]
[424765086,1781137840000,-998.316737,0.00021918,2]
[424765109,1781137840000,-151.0,0.00021918,2]
[424765099,1781137840000,-151.0,0.00021918,2]
[424765111,1781137840000,-151.0,0.00021918,2]
[424765090,1781137840000,-998.316737,0.00021918,2]
[424765091,1781137840000,-998.316737,0.00021918,2]
[424765096,1781137840000,-998.316737,0.00021918,2]
[424765093,1781137840000,-998.316737,0.00021918,2]
[424765100,1781137840000,-151.0,0.00021918,2]
[424765097,1781137840000,-151.0,0.00021918,2]
[424765101,1781137840000,-151.0,0.00021918,2]
[424765095,1781137840000,-998.316737,0.00021918,2]
[424765084,1781137840000,-998.316737,0.00021918,2]